bitfinex/quotes_ETHUSD_20241022
["timestamp","ask_amount","ask_price","bid_price","bid_amount"]
[1729622410471,5.47887795,2625.8,2625.5,0.28491935]
[1729622410700,5.47887795,2625.8,2625.5,0.79718972]
[1729622411284,5.47887795,2625.8,2625.4,6.75062689]
[1729622411481,5.47879795,2625.9,2625.5,0.28489018]
[1729622411674,5.47879795,2625.9,2625.5,3.80879]
[1729622411874,5.47879795,2625.9,2625.5,4.60597972]
[1729622412627,1.67051795,2625.8,2625.5,4.60597972]
[1729622412926,5.47879795,2625.9,2625.5,4.60597972]
[1729622413082,5.47879795,2625.9,2625.5,3.80879]
[1729622413277,3.8079,2626.2,2625.6,4.62995]
[1729622413531,3.80771,2626.3,2625.9,4.62945]
[1729622413826,1.67051795,2626.1,2625.9,0.8213]
[1729622414124,5.47837795,2626.2,2625.9,0.8213]
[1729622414421,1.67051795,2626.1,2625.9,0.8213]
[1729622414994,1.67051795,2626.2,2625.9,0.8213]
[1729622415320,1.67051795,2626.2,2625.9,4.62944]
[1729622418831,1.67051795,2626.1,2625.9,0.8213]
[1729622419964,1.67051795,2626.1,2625.9,4.62948]
[1729622420152,1.67051795,2626.2,2625.9,4.62948]
[1729622421881,1.67051795,2626.2,2625.9,5.42666972]
[1729622422090,1.67051795,2626.1,2625.9,5.42666972]
[1729622422261,1.66910275,2626.2,2625.9,4.62948]
[1729622422461,1.66910275,2626.2,2625.9,5.42666972]
[1729622424180,3.80726,2626.6,2626.1,4.57255]
[1729622424390,5.47777795,2626.6,2626.2,3.80776]
[1729622424896,5.47777795,2626.6,2626.2,4.60494972]
[1729622425196,1.67051795,2626.6,2626.2,0.79718972]
[1729622425400,3.80741,2626.5,2626.1,5.36968972]
[1729622425603,5.47774795,2626.6,2626.2,5.41567983]
[1729622425900,1.67051795,2626.5,2626.2,5.92815691]
[1729622426070,1.67051795,2626.6,2626.3,3.80763]
[1729622426266,5.47762795,2626.7,2626.3,3.80763]
[1729622426469,5.47762795,2626.7,2626.3,4.94826149]
[1729622426659,1.67051795,2626.6,2626.3,4.94826149]
[1729622427308,1.67051795,2626.6,2626.3,8.75581149]
[1729622427598,1.67051795,2626.6,2626.3,4.94818149]
[1729622427802,1.67051795,2626.7,2626.4,4.61367]
[1729622427958,5.47759795,2626.7,2626.4,1.51305584]
[1729622428384,3.99621,2626.9,2626.4,1.51305584]
[1729622428658,1.67051795,2626.7,2626.4,1.51305584]
[1729622428858,1.67051795,2626.6,2626.4,1.51305584]
[1729622429162,1.67051795,2626.5,2626.4,0.8062]
[1729622430203,1.67051795,2626.6,2626.4,0.8062]
[1729622433884,1.67051795,2626.5,2626.4,0.8062]
[1729622434079,1.67051795,2626.5,2626.2,0.8097]
[1729622434317,3.80792,2626.1,2625.9,0.79718972]
[1729622434481,1.67051795,2626.0,2625.8,0.79718972]
[1729622434679,1.67051795,2626.0,2625.7,5.41529972]
[1729622434915,1.67051795,2626.0,2625.7,6.6167151]
[1729622435123,1.67051795,2626.1,2625.8,3.80835]
[1729622435417,5.47841795,2626.2,2625.8,3.80835]
[1729622435719,5.47841795,2626.2,2625.8,4.60553972]
[1729622435881,5.47841795,2626.2,2625.8,3.80835]
[1729622437319,5.47841795,2626.2,2625.8,4.97043497]
[1729622439336,5.47841795,2626.2,2625.8,5.76762469]
[1729622440448,3.8074,2626.5,2626.0,4.63954]
[1729622440606,5.47791795,2626.5,2626.0,4.63954]
[1729622441106,1.67051795,2626.4,2626.0,4.63954]
[1729622442203,1.67051795,2626.3,2626.0,4.63954]
[1729622442408,3.80741,2626.5,2626.0,4.63954]
[1729622442409,1.67051795,2626.4,2626.0,4.63954]
[1729622443943,1.67051795,2626.3,2626.0,4.63954]
[1729622444308,1.67051795,2626.3,2625.9,0.79691206]
[1729622444309,1.67051795,2626.2,2625.9,0.79691206]
[1729622444516,5.47829795,2626.2,2625.8,5.43668206]
[1729622444712,5.47829795,2626.2,2625.8,6.68568197]
[1729622445109,5.47815795,2626.3,2625.9,4.88984922]
[1729622445335,5.47815795,2626.3,2625.9,4.60512206]
[1729622445960,1.67051795,2626.2,2625.9,4.60512206]
[1729622446822,5.47815795,2626.3,2625.9,4.60512206]
[1729622448616,1.67051795,2626.2,2625.9,4.60512206]
[1729622448821,5.47815795,2626.3,2625.9,4.60512206]
[1729622449226,5.47815795,2626.3,2625.9,3.80821]
[1729622450361,5.47815795,2626.3,2625.9,4.60577942]
[1729622457247,5.47800795,2626.4,2626.1,0.7642]
[1729622457647,3.80749,2626.4,2626.1,0.7642]
[1729622457969,5.47800795,2626.4,2626.1,0.7642]
[1729622459459,3.80749,2626.4,2626.1,0.7642]
[1729622459868,1.67051795,2626.5,2626.1,1.56176942]
[1729622460066,5.47796795,2626.5,2626.1,5.36966942]
[1729622460680,3.80745,2626.5,2626.1,5.36966942]
[1729622461055,3.80745,2626.5,2626.2,3.80769]
[1729622461056,1.67051795,2626.5,2626.2,3.80769]
[1729622461985,1.67051795,2626.5,2626.2,4.60525942]
[1729622462145,1.67051795,2626.3,2626.1,0.79756942]
[1729622462350,5.47836795,2626.2,2625.9,0.7565]
[1729622462545,1.67051795,2626.1,2625.9,0.7565]
[1729622462756,3.80785,2626.2,2625.9,0.7565]
[1729622462757,1.67051795,2626.0,2625.9,0.7565]
[1729622463647,1.67051795,2626.0,2625.9,1.55406942]
[1729622464653,1.67051795,2626.0,2625.9,0.7565]
[1729622469954,1.67051795,2626.0,2625.8,0.79756942]
[1729622470202,1.67051795,2626.0,2625.7,1.98285414]
[1729622470203,5.47872795,2625.9,2625.7,1.58406942]
[1729622470354,5.47896795,2625.8,2625.6,0.79756942]
[1729622470696,5.47901795,2625.7,2625.6,0.79756942]
[1729622470851,5.47901795,2625.7,2625.5,1.58406942]
[1729622471257,1.67051795,2625.6,2625.5,1.58406942]
[1729622472199,1.67051795,2625.7,2625.5,1.58406942]
[1729622472362,3.80824,2625.9,2625.6,1.45650278]
[1729622472557,5.47875795,2625.9,2625.6,0.79756942]
[1729622472872,1.67051795,2625.8,2625.6,0.79756942]
[1729622474092,1.67051795,2625.7,2625.6,0.79756942]
[1729622475197,1.67051795,2625.8,2625.6,0.79756942]
[1729622476099,3.80824,2625.9,2625.6,0.79756942]
[1729622476100,1.67051795,2625.7,2625.6,0.79756942]
[1729622476403,1.67051795,2625.7,2625.5,5.39276942]
[1729622476707,1.67051795,2625.7,2625.5,1.58406942]
[1729622477504,1.67051795,2625.6,2625.5,0.79756942]
[1729622477862,7.3390859,2625.6,2625.4,0.79756942]
[1729622478099,5.47930795,2625.5,2625.2,0.79756942]
[1729622478403,5.47930795,2625.5,2625.2,1.58456942]
[1729622478404,1.67051795,2625.3,2625.2,1.58456942]
[1729622478564,1.67051795,2625.3,2625.2,0.787]
[1729622478900,1.67051795,2625.3,2625.2,1.58456942]
[1729622479705,1.67051795,2625.3,2625.2,0.787]
[1729622480267,3.80867,2625.6,2625.2,1.58456942]
[1729622480471,1.67051795,2625.6,2625.2,6.05279878]
[1729622480777,3.80859,2625.7,2625.4,1.59986942]
[1729622480778,1.67051795,2625.7,2625.4,1.59986942]
[1729622481099,1.67051795,2625.7,2625.4,5.40874942]
[1729622481264,7.61658,2625.9,2625.4,6.51607571]
[1729622481265,1.67051795,2625.6,2625.4,6.51607571]
[1729622481670,1.67051795,2625.9,2625.5,4.61121]
[1729622481896,1.67051795,2625.8,2625.5,8.41994]
[1729622482093,1.67051795,2625.8,2625.5,9.21750942]
[1729622482485,1.67051795,2625.8,2625.5,5.40877942]
[1729622482704,1.67051795,2625.8,2625.6,0.65161057]
[1729622483073,1.67051795,2625.7,2625.6,0.65161057]
[1729622483268,1.67051795,2625.7,2625.5,4.61121]
[1729622484884,1.67051795,2625.6,2625.5,0.8025]
[1729622485878,5.47916795,2625.6,2625.3,0.7587]
[1729622486085,1.67051795,2625.4,2625.2,0.79756942]
[1729622486395,1.67051795,2625.3,2625.1,1.55626942]
[1729622486569,1.67051795,2625.3,2625.1,0.7587]
[1729622488092,5.47904795,2625.7,2625.2,3.80916]
[1729622488302,1.67051795,2625.6,2625.2,3.80916]
[1729622488467,5.47904795,2625.7,2625.2,3.80915]
[1729622488680,1.67051795,2625.6,2625.3,3.809]
[1729622488909,1.67051795,2625.7,2625.4,4.62813]
[1729622489066,1.67051795,2625.7,2625.4,0.8192]
[1729622489507,1.67051795,2625.6,2625.4,0.8192]
[1729622491280,1.67051795,2625.6,2625.2,3.80921]
[1729622491281,1.67051795,2625.5,2625.2,3.80921]
[1729622491571,1.67051795,2625.4,2625.2,0.8318]
[1729622491918,1.67051795,2625.5,2625.2,4.64102]
[1729622492272,1.67051795,2625.5,2625.2,0.8318]
[1729622492711,1.67051795,2625.4,2625.2,0.8318]
[1729622493083,1.67051795,2625.3,2625.2,0.8318]
[1729622493379,1.67051795,2625.5,2625.2,0.8318]
[1729622494503,1.67051795,2625.4,2625.2,0.8318]
[1729622495412,3.8088,2625.5,2625.2,0.8318]
[1729622495413,5.47931795,2625.5,2625.2,0.8318]
[1729622495577,1.67051795,2625.4,2625.2,0.8318]
[1729622496611,1.67051795,2625.3,2625.2,0.8318]
[1729622496975,5.47960795,2625.3,2625.0,0.8224]
[1729622497171,1.67051795,2625.1,2625.0,0.8224]
[1729622498221,1.67051795,2625.2,2625.0,0.8224]
[1729622498514,1.67051795,2625.1,2624.8,8.41705942]
[1729622498735,1.67051795,2625.1,2624.8,8.41704942]
[1729622498913,7.80765,2625.3,2624.8,5.65087978]
[1729622499121,1.67051795,2625.2,2624.8,5.65087978]
[1729622499321,1.67051795,2625.1,2624.8,9.46057978]
[1729622499918,1.67051795,2625.2,2624.9,3.80964]
[1729622500811,1.67051795,2625.2,2625.0,3.80951]
[1729622501407,1.67051795,2625.2,2624.9,3.80964]
[1729622501734,1.67051795,2625.2,2624.9,4.8777544]
[1729622503724,1.67051795,2625.2,2624.9,1.0681144]
[1729622503884,1.67051795,2625.2,2625.0,3.80952]
[1729622512294,1.67051795,2625.2,2625.0,4.60697613]
[1729622512798,7.61724,2625.7,2625.2,3.8092]
[1729622513007,5.47879795,2625.9,2625.5,0.7874]
[1729622513194,1.67051795,2625.8,2625.5,4.59612]
[1729622513421,3.80822,2625.9,2625.5,4.59612]
[1729622513593,1.67051795,2625.6,2625.5,0.7874]
[1729622513823,1.67051795,2625.6,2625.3,2.04698613]
[1729622514129,1.67051795,2625.6,2625.1,1.59491226]
[1729622514130,3.99805,2625.6,2625.1,5.39414613]
[1729622514291,1.67051795,2625.2,2625.1,1.58485613]
[1729622514498,1.67051795,2625.2,2625.0,5.42244487]
[1729622514710,1.67051795,2625.3,2625.0,9.23186487]
[1729622515125,1.67051795,2625.3,2625.1,3.8093]
[1729622515316,1.67051795,2625.3,2625.1,4.60714487]
[1729622516331,1.67051795,2625.2,2625.1,0.79784487]
[1729622516700,1.67051795,2625.2,2625.0,4.60729487]
[1729622517234,1.67051795,2625.1,2625.0,0.79784487]
[1729622519095,3.80952,2625.0,2624.9,0.79784487]
[1729622519296,3.3410359,2625.0,2624.5,0.79784487]
[1729622519501,3.81026,2624.5,2624.1,0.79784487]
[1729622519711,7.62059,2624.5,2624.1,0.79784487]
[1729622519915,3.81026,2624.5,2624.1,0.79784487]
[1729622520111,1.67051795,2624.2,2624.1,3.81082]
[1729622520335,3.81004,2624.7,2624.1,3.81082]
[1729622520336,3.81004,2624.7,2624.3,3.81053]
[1729622520513,3.99923,2624.8,2624.3,5.43231487]
[1729622520848,3.99923,2624.8,2624.3,4.63447]
[1729622521010,3.99923,2624.8,2624.3,5.43231487]
[1729622521443,3.99923,2624.8,2624.3,4.63447]
[1729622521647,3.99923,2624.8,2624.3,4.63445]
[1729622521808,0.1894,2624.8,2624.3,0.824]
[1729622522010,3.99922,2624.8,2624.4,3.81038]
[1729622522259,3.99922,2624.8,2624.3,4.63452]
[1729622522407,3.99922,2624.8,2624.3,8.44496]
[1729622522611,7.39907741,2625.0,2624.4,3.81026]
[1729622522811,11.20869741,2625.0,2624.4,7.62057]
[1729622523015,7.20997741,2624.8,2624.3,3.81041]
[1729622523925,3.40006741,2624.8,2624.4,3.81034]
[1729622524252,7.20988741,2624.8,2624.3,3.81052]
[1729622524894,7.20988741,2624.8,2624.3,3.81044]
[1729622525875,7.20988741,2624.8,2624.3,7.6209]
[1729622526090,7.20988741,2624.8,2624.3,3.81044]
[1729622527670,7.20988741,2624.8,2624.3,7.6209]
[1729622528015,7.20988741,2624.8,2624.3,3.81044]
[1729622529100,3.99906,2624.9,2624.4,3.81031]
[1729622529297,0.1894,2624.9,2624.5,3.81015]
[1729622529982,3.99915,2624.9,2624.4,3.81039]
[1729622530790,3.99915,2624.9,2624.4,7.6207]
[1729622531292,0.1894,2624.9,2624.5,3.81018]
[1729622531692,0.1894,2624.9,2624.6,3.81007]
[1729622532025,0.1894,2624.9,2624.5,3.81023]
[1729622534485,0.1894,2624.9,2624.5,3.81017]
[1729622534682,3.8096,2625.0,2624.6,0.7978]
[1729622535129,3.8096,2625.0,2624.6,4.6079]
[1729622535623,3.80939,2625.1,2624.7,3.80989]
[1729622535787,3.99873,2625.2,2624.7,3.80989]
[1729622535998,3.80945,2625.1,2624.7,3.80989]
[1729622536201,7.20958741,2625.0,2624.6,5.533566]
[1729622536413,7.20958741,2625.0,2624.6,3.81007]
[1729622537636,7.20958741,2625.0,2624.5,3.81017]
[1729622538138,3.80969,2624.9,2624.5,3.81017]
[1729622538315,3.99909,2624.9,2624.5,3.81017]
[1729622539147,3.99909,2624.9,2624.5,7.62033]
[1729622539458,3.80897,2625.4,2624.8,0.8247]
[1729622539459,3.809,2625.4,2624.8,0.8247]
[1729622539614,0.1894,2626.3,2625.2,0.8247]
[1729622539813,3.808,2626.1,2625.4,3.80892]
[1729622540000,3.80842,2625.8,2625.3,3.88517849]
[1729622540202,3.40006741,2625.6,2625.1,0.79784487]
[1729622540438,3.80909,2625.3,2625.0,0.79784487]
[1729622540607,7.61827,2625.3,2624.8,3.8098]
[1729622540813,3.80909,2625.3,2624.7,3.798]
[1729622541012,3.80924,2625.2,2624.7,5.40573487]
[1729622541230,3.80924,2625.2,2624.8,3.80981]
[1729622541426,3.8091,2625.3,2624.8,3.80981]
[1729622542052,3.8091,2625.3,2624.9,3.80965]
[1729622542211,3.8091,2625.3,2624.8,7.61954]
[1729622542537,3.8091,2625.3,2624.8,4.60757487]
[1729622542751,0.1894,2625.4,2624.8,5.808232]
[1729622543042,0.1894,2625.4,2625.0,3.80952]
[1729622545404,0.1894,2625.4,2625.0,3.80943]
[1729622545710,0.1894,2625.4,2625.1,3.80936]
[1729622546041,0.1894,2625.4,2625.0,3.80943]
[1729622547003,0.1894,2625.4,2625.0,7.61887]
[1729622547205,0.1894,2625.4,2625.1,3.80924]
[1729622547637,0.1894,2625.4,2625.0,3.80943]
[1729622548160,3.99834,2625.4,2625.0,3.80943]
[1729622548641,3.99834,2625.4,2624.9,4.60744487]
[1729622548798,3.99834,2625.4,2624.9,0.79784487]
[1729622548998,3.99834,2625.4,2624.9,3.80966]
[1729622549212,3.80932,2625.2,2624.7,3.80989]
[1729622549505,0.1894,2625.0,2624.6,4.60787487]
[1729622549815,3.8097,2624.9,2624.6,0.79784487]
[1729622550020,3.8098,2624.9,2624.4,4.60815487]
[1729622550234,3.80983,2624.8,2624.4,4.60815487]
[1729622550405,3.80983,2624.8,2624.4,3.81031]
[1729622551016,3.80983,2624.8,2624.4,4.60815487]
[1729622551221,3.80969,2624.9,2624.4,4.60812487]
[1729622551449,0.1894,2625.0,2624.7,3.80993]
[1729622551771,0.1894,2625.0,2624.5,0.87404792]
[1729622551772,0.1894,2625.0,2624.6,3.81008]
[1729622553325,3.99894,2625.0,2624.6,3.81008]
[1729622553746,0.1894,2625.0,2624.6,3.81001]
[1729622554659,0.1894,2625.0,2624.6,3.80999]
[1729622554861,3.80921,2625.3,2624.6,5.27107402]
[1729622554862,3.99865,2625.2,2624.6,5.27107402]
[1729622555165,3.99865,2625.2,2624.7,3.80989]
[1729622555527,3.80939,2625.1,2624.7,3.80989]
[1729622558450,3.80939,2625.1,2624.6,8.41785487]
[1729622558970,3.80918,2625.3,2624.7,5.39227487]
[1729622559172,3.80926,2625.2,2624.7,5.39223487]
[1729622559349,3.80932,2625.2,2624.7,0.7845]
[1729622559771,3.80932,2625.2,2624.7,5.39228487]
[1729622560065,3.80932,2625.2,2624.7,4.59444]
[1729622560273,3.80932,2625.2,2624.7,5.39228487]
[1729622560575,3.80932,2625.2,2624.7,4.59444]
[1729622560967,3.80932,2625.2,2624.8,3.8098]
[1729622561149,3.80915,2625.3,2624.8,3.8098]
[1729622561841,3.80915,2625.3,2624.8,3.80975]
[1729622562148,3.80915,2625.3,2624.8,7.61948]
[1729622562535,3.80915,2625.3,2624.8,3.80973]
[1729622563249,3.80915,2625.3,2624.8,7.61944]
[1729622563681,7.39852741,2625.4,2624.9,3.80956]
[1729622564047,11.20757741,2625.4,2624.9,3.80956]
[1729622564237,7.39851741,2625.4,2624.9,3.80956]
[1729622564441,11.20756741,2625.4,2624.9,3.80956]
[1729622564880,3.8091,2625.3,2624.8,3.80979]
[1729622566935,3.80943,2625.1,2624.7,1.58234487]
[1729622567584,7.6189,2625.1,2624.7,1.58234487]
[1729622567746,3.80943,2625.1,2624.7,1.58234487]
[1729622568143,7.61889,2625.1,2624.7,1.58234487]
[1729622568662,3.80943,2625.1,2624.7,1.58234487]
[1729622568989,3.80943,2625.1,2624.7,5.39229487]
[1729622569284,3.80943,2625.1,2624.7,1.58234487]
[1729622570243,3.80943,2625.1,2624.7,5.39227487]
[1729622570441,3.80943,2625.1,2624.7,1.58234487]
[1729622570793,7.61891,2625.1,2624.7,1.58234487]
[1729622570961,3.80943,2625.1,2624.7,1.58234487]
[1729622572493,3.80921,2625.3,2624.8,0.79784487]
[1729622572685,3.80925,2625.2,2624.8,0.79784487]
[1729622572982,3.80923,2625.2,2624.8,0.79784487]
[1729622573156,3.80941,2625.1,2624.7,5.39227487]
[1729622573484,3.80941,2625.1,2624.8,0.79784487]
[1729622575011,3.80925,2625.2,2624.8,0.79784487]
[1729622575797,3.8091,2625.3,2624.8,4.60764487]
[1729622575962,3.8091,2625.3,2624.9,0.79784487]
[1729622576179,3.8091,2625.3,2624.8,4.60764487]
[1729622576409,3.8091,2625.3,2624.8,0.79784487]
[1729622576612,3.8091,2625.3,2624.9,4.60750487]
[1729622576931,3.8091,2625.3,2624.9,3.80966]
[1729622577487,3.8091,2625.3,2624.9,4.60750487]
[1729622578515,3.8091,2625.3,2624.8,4.60758487]
[1729622580115,3.8091,2625.3,2624.9,4.60747487]
[1729622580878,3.8091,2625.3,2624.9,3.80963]
[1729622581817,3.99883,2625.1,2624.8,0.79784487]
[1729622582135,3.99921,2624.8,2624.6,0.79784487]
[1729622582279,7.62004,2624.7,2624.5,0.79784487]
[1729622582491,3.80995,2624.7,2624.4,0.79784487]
[1729622583599,3.99924,2624.8,2624.5,0.79784487]
[1729622584195,3.99924,2624.8,2624.4,4.60817487]
[1729622584533,0.1894,2624.8,2624.5,0.79784487]
[1729622584732,0.1894,2624.8,2624.4,4.60821487]
[1729622584966,0.1894,2624.8,2624.5,0.79784487]
[1729622585251,0.1894,2624.8,2624.4,8.41849487]
[1729622585415,0.1894,2624.8,2624.5,0.79784487]
[1729622586046,0.1894,2624.8,2624.4,7.62065]
[1729622586754,0.1894,2624.8,2624.4,3.81028]
[1729622586948,0.1894,2624.8,2624.4,7.6206]
[1729622587155,0.1894,2624.8,2624.5,0.79910069]
[1729622588126,0.1894,2624.8,2624.5,4.60930069]
[1729622588324,0.1894,2625.1,2624.7,3.80988]
[1729622588523,3.99879,2625.1,2624.6,0.7746]
[1729622588738,3.99879,2625.1,2624.6,0.79910069]
[1729622588916,3.80961,2625.0,2624.6,3.81007]
[1729622589257,3.80961,2625.0,2624.6,7.6201]
[1729622589572,3.80961,2625.0,2624.6,3.81003]
[1729622590454,3.80967,2624.9,2624.5,4.60934069]
[1729622590953,7.61924,2625.0,2624.5,4.60934069]
[1729622591317,3.80961,2625.0,2624.5,4.60934069]
[1729622591519,7.39917741,2624.9,2624.5,0.79910069]
[1729622591753,3.99957,2624.6,2624.4,0.79910069]
[1729622591959,3.99957,2624.6,2624.3,0.79910069]
[1729622592159,3.81046,2624.4,2624.2,0.79910069]
[1729622592858,3.81046,2624.4,2624.1,0.79910069]
[1729622593212,7.21043741,2624.5,2624.0,0.79910069]
[1729622593213,3.81054,2624.3,2624.0,0.79910069]
[1729622593460,3.81041,2624.4,2624.1,0.79910069]
[1729622594343,3.81041,2624.4,2624.0,4.61005069]
[1729622596247,0.1894,2624.3,2624.0,4.61006069]
[1729622596959,0.1894,2624.3,2624.0,3.81096]
[1729622597120,0.1894,2624.3,2624.0,4.61006069]
[1729622597460,0.1894,2624.3,2624.0,3.81096]
[1729622598016,0.1894,2624.3,2624.0,0.79910069]
[1729622598221,3.8107,2624.2,2623.9,0.79910069]
[1729622598418,0.1894,2624.3,2623.9,0.79910069]
[1729622598419,3.81085,2624.1,2623.9,0.79910069]
[1729622598660,3.81076,2624.2,2623.8,0.79910069]
[1729622599427,3.81076,2624.2,2623.7,5.43819069]
[1729622599622,3.81076,2624.2,2623.8,0.79910069]
[1729622600075,3.81076,2624.2,2623.7,5.43819069]
[1729622600279,3.81076,2624.2,2623.8,0.79910069]
[1729622600472,3.81088,2624.1,2623.7,5.43819069]
[1729622600709,3.81088,2624.1,2623.7,3.81129]
[1729622601090,3.58946741,2624.3,2623.7,3.81129]
[1729622601260,3.81078,2624.2,2623.7,3.81129]
[1729622601462,7.40062741,2623.9,2623.5,0.79910069]
[1729622601761,7.40062741,2623.9,2623.3,0.79910069]
[1729622601762,3.81158,2623.6,2623.3,0.79910069]
[1729622601959,3.81158,2623.6,2623.2,4.61123069]
[1729622602197,3.40006741,2623.7,2623.2,4.61111069]
[1729622602198,0.1894,2623.5,2623.2,4.61111069]
[1729622602398,0.1894,2623.5,2623.2,3.81201]
[1729622602585,3.58946741,2623.5,2623.2,3.81207]
[1729622602997,3.58946741,2623.5,2623.1,3.81221]
[1729622603300,3.81193,2623.4,2622.9,3.81251]
[1729622603503,7.21206741,2623.3,2622.8,5.43950069]
[1729622603716,7.21206741,2623.3,2622.8,4.6404]
[1729622604310,7.21206741,2623.3,2622.9,3.81248]
[1729622604602,3.40006741,2623.3,2622.9,3.81248]
[1729622605615,7.21212741,2623.3,2622.8,4.6405]
[1729622606086,7.21212741,2623.3,2622.8,0.8278]
[1729622606289,0.1894,2623.2,2622.8,3.8127]
[1729622607497,0.1894,2623.2,2622.9,3.81254]
[1729622607697,3.40006741,2623.1,2622.5,3.0]
[1729622607939,0.1894,2623.0,2622.5,3.81306]
[1729622608326,0.1894,2623.0,2622.6,3.813]
[1729622609309,0.1894,2623.0,2622.7,3.81286]
[1729622609518,0.1894,2623.0,2622.6,3.81292]
[1729622609899,0.1894,2623.0,2622.7,3.81278]
[1729622610305,7.21215741,2623.3,2622.8,7.62532]
[1729622610533,7.40155741,2623.3,2622.8,8.38027]
[1729622610716,7.40155741,2623.3,2622.8,4.56763]
[1729622611129,7.40155741,2623.3,2622.8,8.38026]
[1729622611347,7.40155741,2623.3,2622.8,4.56763]
[1729622612144,3.58946741,2623.3,2622.9,3.81256]
[1729622612353,3.58946741,2623.3,2622.9,3.81247]
[1729622612658,0.1894,2623.3,2623.1,3.81225]
[1729622613021,0.1894,2623.3,2622.8,3.8126]
[1729622613226,0.1894,2623.3,2622.8,4.26936]
[1729622613406,3.58946741,2623.3,2622.9,3.81257]
[1729622615271,3.58946741,2623.3,2622.9,3.81251]
[1729622615452,3.58946741,2623.3,2622.8,4.63251]
[1729622615654,3.58946741,2623.3,2622.9,3.8125]
[1729622616061,0.1894,2623.3,2622.9,3.8125]
[1729622616372,0.1894,2623.3,2622.9,3.81247]
[1729622616570,0.1894,2623.3,2623.0,3.81242]
[1729622616952,0.1894,2623.3,2622.9,3.81256]
[1729622617156,0.1894,2623.3,2622.9,3.81257]
[1729622617570,0.1894,2623.3,2622.8,4.63247]
[1729622617942,0.1894,2623.3,2622.9,3.81256]
[1729622620069,4.00139,2623.3,2622.9,3.81256]
[1729622620464,0.1894,2623.3,2622.9,3.81256]
[1729622621462,0.1894,2623.3,2623.0,3.81235]
[1729622621662,3.81184,2623.4,2623.0,3.81235]
[1729622623613,3.81187,2623.4,2623.0,3.81235]
[1729622626827,3.81187,2623.4,2622.8,0.8198]
[1729622626982,7.21205741,2623.3,2622.8,0.8198]
[1729622627177,4.0016,2623.2,2622.7,3.81278]
[1729622627515,3.81228,2623.1,2622.7,3.81278]
[1729622627906,4.00159,2623.2,2622.7,3.81278]
[1729622628087,4.00159,2623.2,2622.8,3.81262]
[1729622628416,3.81186,2623.4,2623.0,4.62991]
[1729622628417,4.00126,2623.4,2623.0,4.62991]
[1729622628776,0.1894,2623.4,2623.0,4.62991]
[1729622629219,4.00128,2623.4,2623.0,4.62991]
[1729622634156,4.00128,2623.4,2623.0,8.44225]
[1729622634524,0.1894,2623.4,2623.0,8.44225]
[1729622634734,0.1894,2623.4,2623.0,4.62984]
[1729622635144,4.00125,2623.4,2623.0,4.62984]
[1729622636730,4.00125,2623.4,2623.0,8.4422]
[1729622636931,4.00125,2623.4,2623.0,4.62984]
[1729622637156,0.1894,2623.4,2623.0,4.62984]
[1729622637339,7.21142741,2623.8,2623.2,3.81206]
[1729622637543,0.1894,2623.7,2623.2,3.81206]
[1729622638109,3.81024,2624.5,2623.6,3.81154]
[1729622638257,0.1894,2624.7,2624.1,1.673425]
[1729622638258,1.673425,2624.7,2624.1,1.673425]
[1729622638460,3.99921,2624.8,2624.0,3.81093]
[1729622638461,1.673425,2624.5,2624.0,3.81093]
[1729622638662,3.81017,2624.6,2624.1,3.81071]
[1729622638918,1.673425,2624.5,2624.1,3.81071]
[1729622639056,1.673425,2624.5,2624.0,3.81093]
[1729622639257,1.673425,2624.5,2624.1,3.81083]
[1729622639675,1.673425,2624.5,2624.1,7.62159]
[1729622640227,1.673425,2624.5,2624.2,3.81066]
[1729622640370,1.673425,2624.5,2624.1,7.62148]
[1729622640575,1.673425,2624.5,2624.1,3.81072]
[1729622640776,1.673425,2624.4,2624.1,3.81072]
[1729622640963,5.484125,2624.2,2623.6,4.61054069]
[1729622641305,1.673425,2623.9,2623.7,7.62265]
[1729622641531,1.673425,2624.0,2623.7,7.62265]
[1729622641807,1.673425,2623.9,2623.6,3.81141]
[1729622642103,3.8107,2624.2,2623.6,3.81141]
[1729622642104,1.673425,2624.0,2623.7,3.81133]
[1729622642420,3.8107,2624.2,2623.7,3.81133]
[1729622642893,3.8107,2624.2,2623.7,3.81131]
[1729622643260,3.8107,2624.2,2623.8,3.81124]
[1729622644909,3.80998,2624.7,2623.5,1.57800069]
[1729622644910,0.1894,2624.5,2624.0,3.81086]
[1729622645063,0.1894,2624.5,2624.1,3.81074]
[1729622645395,3.8104,2624.4,2623.9,3.81102]
[1729622645987,3.40126321,2624.3,2623.9,3.81102]
[1729622646308,3.81039,2624.4,2623.9,3.81102]
[1729622647496,3.99976,2624.5,2623.9,3.81102]
[1729622647715,0.1894,2624.5,2624.0,3.81086]
[1729622647857,3.99965,2624.5,2624.0,3.81086]
[1729622648597,3.99965,2624.5,2623.9,4.192182]
[1729622648801,3.99965,2624.5,2624.1,3.81082]
[1729622652523,0.1894,2624.5,2623.9,1.148402]
[1729622652665,0.1894,2624.5,2624.2,3.81059]
[1729622653091,3.8101,2624.6,2624.2,3.81059]
[1729622653287,0.1894,2624.7,2624.2,7.6212]
[1729622653491,3.99937,2624.7,2624.2,7.6212]
[1729622653765,3.99937,2624.7,2624.2,3.81059]
[1729622654172,3.99937,2624.7,2624.3,3.8105]
[1729622655666,0.1894,2624.7,2624.3,3.8105]
[1729622655889,0.1894,2624.7,2624.4,3.81037]
[1729622656804,0.1894,2624.7,2624.3,4.654329]
[1729622657789,0.1894,2624.7,2624.4,3.81039]
[1729622659883,0.1894,2624.7,2624.3,0.843869]
[1729622660209,0.1894,2624.7,2624.3,4.654389]
[1729622661499,3.99936,2624.7,2624.3,4.654389]
[1729622662506,5.67298067,2624.7,2624.3,4.654389]
[1729622662821,3.99936,2624.7,2624.3,4.654389]
[1729622663034,5.67298067,2624.7,2624.3,4.654389]
[1729622667457,3.99936,2624.7,2624.3,4.654389]
[1729622667664,5.48345067,2624.8,2624.4,4.7386389]
[1729622667968,3.9991,2624.9,2624.4,0.9282589]
[1729622668172,5.67272067,2624.9,2624.5,3.8102]
[1729622668727,9.48247067,2624.9,2624.5,3.8102]
[1729622668927,5.67272067,2624.9,2624.5,4.66509589]